fUSD/lending_fUSD_20251229
["ID","MTS","AMOUNT","RATE_DAILY","PERIOD"]
[399989883,1766983387896,-205.42822465,0.00014573,2]
[399989884,1766983387919,-294.57177535,0.00014573,2]
[399989885,1766983425381,307.0,0.00030137,120]
[399989886,1766983432883,-201.89823484,0.00014573,2]
[399989887,1766983432919,-115.81879445,0.00014709,2]
[399989888,1766983432945,-182.28297071,0.00014709,2]
[399989889,1766983507896,-67.71702929,0.00014709,2]
[399989890,1766983507922,-172.35361598,0.00014778,2]
[399989891,1766983509945,-127.64638402,0.00014778,2]
[399989892,1766983509966,-78.5641935,0.00014846,2]
[399989893,1766983550910,1898.12,7.492e-05,2]
[399989894,1766983551131,1898.12,7.887e-05,2]
[399989895,1766983551350,1427.53883098,8.281e-05,2]
[399989896,1766983551376,470.58116902,8.281e-05,2]
[399989897,1766983551567,1898.12,8.675e-05,2]
[399989898,1766983551749,1898.12,9.07e-05,2]
[399989899,1766983551958,1898.12,9.464e-05,2]
[399989900,1766983552157,1898.12,9.858e-05,2]
[399989901,1766983552350,1898.12,0.00010253,2]
[399989902,1766983552552,38.82883098,0.00010647,2]
[399989903,1766983552577,1859.29116902,0.00010647,2]
[399989904,1766983552755,1898.12,0.00011041,2]
[399989905,1766983552951,231.29073861,0.00011436,2]
[399989906,1766983552979,1666.82926139,0.00011436,2]
[399989907,1766983553222,1898.12,0.0001183,2]
[399989908,1766983553426,1898.12,0.00012224,2]
[399989909,1766983553617,779.52956959,0.00012619,2]
[399989910,1766983553644,1118.59043041,0.00012619,2]
[399989911,1766983558626,-292.484,0.00013013,2]
[399989912,1766983747963,-448.49237684,0.00013013,2]
[399989913,1766983751014,-220.54331013,0.00013013,2]
[399989914,1766983752988,-190.43966131,0.00013013,2]
[399989915,1766983755087,-248.0,0.00013013,2]
[399989916,1766983757425,-307.07000795,0.00013013,2]
[399989917,1766983760605,-166.66,0.00013013,2]
[399989918,1766983808539,-24.43064377,0.00013013,2]
[399989919,1766983808562,-169.02062467,0.00013013,2]
[399989920,1766983811616,161.47,0.00015,7]
[399989930,1766983832245,-87.97937533,0.00013013,2]
[399989931,1766983832256,-250.0,0.0001321,2]
[399989932,1766983832265,-802.63456001,0.00013407,2]
[399989933,1766983832277,-1095.48543999,0.00013407,2]
[399989934,1766983832287,-482.75,0.00013699,2]
[399989935,1766983832296,-946.73588513,0.00013802,2]
[399989936,1766983832308,-951.38411487,0.00013802,2]
[399989937,1766983832318,-1898.12,0.00014196,2]
[399989938,1766983832327,-194.16541624,0.00014314,2]
[399989939,1766983832337,-250.0,0.00014314,2]
[399989940,1766983832347,-480.15116889,0.00014573,2]
[399989941,1766983832359,-20.71390128,0.00014573,2]
[399989942,1766983832369,-1200.0,0.00014589,2]
[399989943,1766983832378,-148.07252743,0.0001459,2]
[399989944,1766983832390,-1750.04747257,0.0001459,2]
[399989945,1766983832400,-300.0,0.00014792,2]
[399989946,1766983832410,-999.0,0.00014793,3]
[399989947,1766983832419,-2013.81746604,0.00014846,2]
[399989948,1766983832429,-59.91037211,0.00014985,2]
[399989949,1766983832442,-745.6569597,0.00014985,2]
[399989950,1766983832457,-830.61757554,0.00014985,2]
[399989951,1766983832468,-261.93509265,0.00014985,2]
[399989952,1766983832478,-1000.0,0.00015121,2]
[399989953,1766983832487,-213.84352075,0.00015282,2]
[399989954,1766983832497,-229.21481106,0.00015356,2]
[399989955,1766983832506,-409.1654543,0.00015393,2]
[399989956,1766983832519,-500.0,0.00015393,2]
[399989957,1766983832529,-500.0,0.00015393,2]
[399989958,1766983832540,-500.0,0.00015393,2]
[399989959,1766983832549,-500.0,0.00015393,2]
[399989960,1766983832558,-567.6092038,0.00015393,2]
[399989961,1766983832568,-500.0,0.00015393,2]
[399989962,1766983832577,-500.0,0.00015393,2]
[399989963,1766983832586,-500.0,0.00015393,2]
[399989964,1766983832594,-500.0,0.00015393,2]
[399989965,1766983832604,-313.36424729,0.00015393,2]
[399989966,1766983832612,-500.0,0.00015393,2]
[399989967,1766983832621,-150.0,0.00015393,2]
[399989968,1766983832630,-352.5225,0.00015394,2]
[399989969,1766983832639,-203.31471259,0.00015394,2]
[399989970,1766983832651,-4900.3748153,0.00015394,2]
[399989971,1766983832662,-874.0,0.00015394,2]
[399989973,1766983838289,-895.5214939,0.00015394,2]
[399989974,1766983838342,-6478.71014821,0.00015394,2]
[399989975,1766983838397,-1260.78888652,0.00015394,2]
[399989976,1766983838451,-253.4450449,0.00015394,2]
[399989977,1766983838463,-634.85188925,0.00015394,2]
[399989978,1766983838474,-4499.01300933,0.00015394,2]
[399989979,1766983838484,-1296.38699026,0.00015394,2]
[399989980,1766983838495,-1203.61300974,0.00015394,2]
[399989981,1766983838505,-33.37017825,0.00015394,2]
[399989982,1766983838516,-34357.4999975,0.00015394,2]
[399990185,1766983840632,-1.7e-07,0.00015394,2]
[399990188,1766983840643,-8263.46295326,0.00015394,2]
[399990190,1766983840657,-11785.87988392,0.00015394,2]
[399990201,1766983840747,-8975.40587101,0.00015394,2]
[399990203,1766983840758,-8763.45477203,0.00015394,2]
[399990205,1766983840769,-4087.71775331,0.00015394,2]
[399990207,1766983840780,-923733.20859055,0.00015394,2]
[399990209,1766983840789,-277.91560992,0.00015456,2]
[399990211,1766983840799,-1718.30758392,0.00015468,2]
[399990213,1766983840808,-5926.44701347,0.0001548,2]
[399990215,1766983840817,-817.77,0.00015484,3]
[399990217,1766983840826,-912.761,0.00015493,2]
[399990219,1766983840835,-393.79395609,0.00015493,2]
[399990221,1766983840844,-500.0,0.00015493,2]
[399990223,1766983840852,-535.41744153,0.00015493,2]
[399990225,1766983840861,-508.81699603,0.00015493,2]
[399990226,1766983840870,-500.0,0.00015493,2]
[399990228,1766983840879,-500.0,0.00015493,2]
[399990230,1766983840888,-500.0,0.00015493,2]
[399990232,1766983840897,-505.80152197,0.00015493,2]
[399990234,1766983840906,-500.0,0.00015493,2]
[399990236,1766983840915,-500.0,0.00015493,2]
[399990238,1766983840928,-289.15694571,0.00015493,2]
[399990240,1766983840936,-500.0,0.00015493,2]
[399990242,1766983840945,-500.0,0.00015493,2]
[399990244,1766983840954,-508.2780754,0.00015493,2]
[399990246,1766983840964,-548.28275774,0.00015493,2]
[399990248,1766983840973,-500.0,0.00015493,2]
[399990249,1766983840982,-500.0,0.00015493,2]
[399990251,1766983840991,-512.21931767,0.00015493,2]
[399990253,1766983841003,-1500.0,0.00015668,2]
[399990255,1766983841011,-151.0,0.00015808,2]
[399990257,1766983841020,-151.0,0.0001581,2]
[399990259,1766983841029,-151.0,0.0001581,2]
[399990261,1766983841038,-500.0,0.00015973,2]
[399990263,1766983841047,-500.7678021,0.00015973,2]
[399990265,1766983841056,-500.0,0.00015973,2]
[399990267,1766983841065,-500.0,0.00015973,2]
[399990269,1766983841074,-500.0,0.00015973,2]
[399990271,1766983841083,-284.43609423,0.00015973,2]
[399990273,1766983841092,-500.0,0.00015973,2]
[399990275,1766983841103,-500.0,0.00015973,2]
[399990277,1766983841112,-323.88004894,0.00015973,2]
[399990279,1766983841120,-500.0,0.00015973,2]
[399990281,1766983841129,-518.38825095,0.00015973,2]
[399990283,1766983841138,-500.0,0.00015973,2]
[399990285,1766983841148,-162.2526262,0.00015973,2]
[399990287,1766983841159,-500.0,0.00015973,2]
[399990289,1766983841168,-500.0,0.00015973,2]
[399990291,1766983841177,-500.0,0.00015973,2]
[399990293,1766983841186,-500.0,0.00015973,2]
[399990295,1766983841195,-188.30553385,0.00015973,2]
[399990297,1766983841205,-500.0,0.00015973,2]
[399990299,1766983841214,-500.0,0.00015973,2]
[399990301,1766983841223,-500.0,0.00015973,2]
[399990302,1766983841232,-500.0,0.00015973,2]
[399990304,1766983841241,-500.0,0.00015973,2]
[399990306,1766983841251,-500.0,0.00015973,2]
[399990308,1766983841260,-607.95145259,0.00015973,2]
[399990310,1766983841269,-500.0,0.00015973,2]
[399990312,1766983841279,-452.98151399,0.00015973,2]
[399990315,1766983841288,-500.0,0.00015973,2]
[399990316,1766983841298,-500.0,0.00015973,2]
[399990318,1766983841308,-500.0,0.00015973,2]
[399990320,1766983841317,-193.07394151,0.00015973,2]
[399990322,1766983841326,-575.91269413,0.00015973,2]
[399990324,1766983841337,-177.85489424,0.00015973,2]
[399990326,1766983841346,-427.28740169,0.00015973,2]
[399990328,1766983841355,-500.0,0.00015973,2]
[399990330,1766983841364,-500.0,0.00015973,2]
[399990332,1766983841374,-578.35760391,0.00015973,2]
[399990334,1766983841383,-374.83084165,0.00015973,2]
[399990336,1766983841392,-500.0,0.00015973,2]
[399990338,1766983841403,-567.05895294,0.00015973,2]
[399990340,1766983841412,-500.0,0.00015973,2]
[399990342,1766983841422,-500.0,0.00015973,2]
[399990344,1766983841431,-181.39311397,0.00015973,2]
[399990346,1766983841440,-500.0,0.00015973,2]
[399990348,1766983841450,-500.0,0.00015973,2]
[399990350,1766983841460,-500.0,0.00015973,2]
[399990352,1766983841469,-500.0,0.00015973,2]
[399990354,1766983841478,-500.0,0.00015973,2]
[399990356,1766983841487,-500.0,0.00015973,2]
[399990358,1766983841496,-500.0,0.00015973,2]
[399990360,1766983841506,-500.0,0.00015973,2]
[399990362,1766983841515,-500.61413144,0.00015973,2]
[399990364,1766983841524,-160.38879283,0.00015973,2]
[399990366,1766983841532,-501.07737956,0.00015973,2]
[399990368,1766983841543,-500.0,0.00015973,2]
[399990370,1766983841553,-500.0,0.00015973,2]
[399990372,1766983841562,-501.00976834,0.00015973,2]
[399990374,1766983841571,-1680.0,0.00016048,2]
[399990376,1766983841580,-194.0,0.00016111,2]
[399990378,1766983841589,-150.99,0.00016116,2]
[399990380,1766983841597,-194.0,0.00016156,2]
[399990382,1766983841607,-420.0,0.00016193,2]
[399990384,1766983841616,-194.0,0.00016194,2]
[399990386,1766983841625,-194.0,0.00016228,2]
[399990388,1766983841634,-194.0,0.00016298,2]
[399990390,1766983841643,-194.0,0.000164,2]
[399990392,1766983841652,-194.0,0.00016406,2]
[399990394,1766983841661,-194.0,0.00016419,2]
[399990396,1766983841670,-194.0,0.00016459,2]
[399990398,1766983841679,-500.0,0.00016521,2]
[399990400,1766983841688,-500.0,0.00016521,2]
[399990402,1766983841697,-637.65660259,0.00016521,2]
[399990404,1766983841705,-500.0,0.00016521,2]
[399990406,1766983841715,-500.69153674,0.00016521,2]
[399990408,1766983841724,-500.55939636,0.00016521,2]
[399990410,1766983841733,-181.10047437,0.00016521,2]
[399990412,1766983841742,-500.76433813,0.00016521,2]
[399990414,1766983841751,-500.0,0.00016521,2]
[399990416,1766983841760,-500.0,0.00016521,2]
[399990417,1766983841770,-500.73110765,0.00016521,2]
[399990420,1766983841780,-500.0,0.00016521,2]
[399990421,1766983841791,-504.91282169,0.00016521,2]
[399990423,1766983841801,-500.0,0.00016521,2]
[399990426,1766983841810,-500.0,0.00016521,2]
[399990427,1766983841819,-500.0,0.00016521,2]
[399990429,1766983841828,-500.71828332,0.00016521,2]
[399990431,1766983841837,-500.0,0.00016521,2]
[399990433,1766983841847,-500.62714248,0.00016521,2]
[399990435,1766983841856,-500.0,0.00016521,2]
[399990437,1766983841866,-500.43220891,0.00016521,2]
[399990439,1766983841878,-1000.0,0.00016521,2]
[399990441,1766983841887,-475.71473664,0.00016521,2]
[399990443,1766983841897,-500.82143741,0.00016521,2]
[399990445,1766983841906,-418.18603229,0.00016521,2]
[399990446,1766983841915,-194.0,0.0001662,2]
[399990447,1766983841929,-194.0,0.00016632,2]
[399990448,1766983841944,-194.0,0.00016784,2]
[399990449,1766983841953,-194.0,0.00016907,2]
[399990450,1766983841962,-1000.0,0.00016963,2]
[399990451,1766983841973,-250.0,0.00017,2]
[399990452,1766983841983,-194.0,0.00017072,2]
[399990453,1766983841992,-194.0,0.00017111,2]
[399990454,1766983842003,-194.0,0.00017149,2]
[399990455,1766983842012,-183.9,0.00017151,2]
[399990456,1766983842022,-194.0,0.00017152,2]
[399990457,1766983842031,-194.0,0.00017176,2]
[399990458,1766983842040,-194.0,0.00017204,2]
[399990459,1766983842050,-194.0,0.00017232,2]
[399990460,1766983842059,-194.0,0.00017345,2]
[399990461,1766983842068,-1000.0,0.00017369,2]
[399990462,1766983842078,-194.0,0.00017482,2]
[399990463,1766983842087,-194.0,0.00017541,2]
[399990464,1766983842096,-194.0,0.00017563,2]
[399990466,1766983842106,-500.0,0.00017631,2]
[399990468,1766983842116,-500.0,0.00017631,2]
[399990470,1766983842126,-500.0,0.00017631,2]
[399990472,1766983842137,-500.0,0.00017631,2]
[399990474,1766983842146,-500.0,0.00017631,2]
[399990476,1766983842156,-250.87276747,0.00017631,2]
[399990478,1766983842166,-305.0,0.00017653,2]
[399990480,1766983842175,-194.0,0.00017655,2]
[399990482,1766983842185,-167.0,0.00017726,2]
[399990484,1766983842195,-1718.3075839,0.00018349,2]
[399990486,1766983842204,-200.0,0.00018998,2]
[399990488,1766983842213,-300.0,0.00019,2]
[399990490,1766983842223,-1000.0,0.00019083,2]
[399990492,1766983842233,-183.9,0.00019496,2]
[399990494,1766983842242,-277.9156099,0.00019989,2]
[399990496,1766983842251,-601.67980179,0.0002,2]
[399990498,1766983842261,-482.75,0.00020187,2]
[399990500,1766983842272,-1000.0,0.00021203,2]
[399990502,1766983842282,-1718.3075839,0.00021231,2]
[399990504,1766983842291,-183.9,0.00021842,2]
[399990506,1766983842300,-189.59,0.00022,7]
[399990508,1766983842309,-152.09829773,0.0002224,2]
[399990510,1766983842319,-1000.0,0.00023324,2]
[399990512,1766983842329,-1718.3075839,0.00024112,2]
[399990514,1766983842339,-183.9,0.00024187,2]
[399990516,1766983842348,-277.9156099,0.00024521,2]
[399990518,1766983842358,-500.0,0.00025099,2]
[399990520,1766983842367,-500.0,0.00025099,2]
[399990522,1766983842376,-500.0,0.00025099,2]
[399990524,1766983842386,-500.0,0.00025099,2]
[399990526,1766983842395,-500.0,0.00025099,2]
[399990528,1766983842403,-161.294,0.00025303,2]
[399990530,1766983842413,-3461.0,0.00025303,2]
[399990532,1766983842423,-1611.0,0.00025303,2]
[399990534,1766983842432,-432.0,0.00025303,2]
[399990536,1766983842441,-1264.0,0.00025303,2]
[399990538,1766983842451,-564.0,0.00025303,2]
[399990540,1766983842461,-6539.0,0.00025303,2]
[399990542,1766983842470,-4810.0,0.00025303,2]
[399990544,1766983842480,-1000.0,0.00025444,2]
[399990546,1766983842489,-183.9,0.00026532,2]
[399990548,1766983842499,-482.75,0.00026676,2]
[399990550,1766983842508,-219.52265803,0.00026983,2]
[399990552,1766983842517,-1718.3075839,0.00026993,2]
[399990554,1766983842527,-2000.0,0.000282,2]
[399990556,1766983842536,-3461.0,0.00028303,2]
[399990558,1766983842545,-1611.0,0.00028303,2]
[399990560,1766983842555,-564.0,0.00028303,2]
[399990562,1766983842565,-6539.0,0.00028303,2]
[399990564,1766983842575,-229.21481104,0.00028378,2]
[399990566,1766983842584,-500.0,0.00028863,30]
[399990568,1766983842593,-500.0,0.00028863,45]
[399990570,1766983842602,-183.9,0.00028878,2]
[399990572,1766983842611,-277.9156099,0.00029054,2]
[399990591,1766983842789,-1718.3075839,0.00029875,2]
[399990593,1766983842799,-500.0,0.00030136,2]
[399990595,1766983842808,-427.8795418,0.00030136,2]
[399990596,1766983842817,-500.0,0.00030136,2]
[399990598,1766983842826,-500.0,0.00030136,2]
[399990600,1766983842836,-461.8,0.00030137,2]
[399990602,1766983842846,-189.59,0.000302,7]
[399990604,1766983842855,-183.9,0.00031223,2]
[399990606,1766983842865,-3458.0,0.00031303,2]
[399990608,1766983842875,-1611.0,0.00031303,2]
[399990610,1766983842884,-564.0,0.00031303,2]
[399990612,1766983842893,-6539.0,0.00031303,2]
[399990614,1766983842903,-500.0,0.00031311,2]
[399990616,1766983842912,-1008.0,0.000319,2]
[399990618,1766983842923,-600.0,0.00032,120]
[399990620,1766983842942,-1718.3075839,0.00032756,2]
[399990622,1766983842951,-500.0,0.00032786,30]
[399990624,1766983842960,-500.0,0.00032786,45]
[399990626,1766983842971,-500.0,0.00032786,120]
[399990628,1766983842981,-500.0,0.00032877,7]
[399990629,1766983842992,-500.0,0.00032877,7]
[399990631,1766983843001,-362.69123777,0.00032877,7]
[399990633,1766983843010,-179.25,0.000329,14]
[399990635,1766983843020,-150.0,0.00032959,2]
[399990637,1766983843030,-150.0,0.00032959,2]
[399990639,1766983843039,-500.0,0.00032959,2]
[399990641,1766983843048,-500.0,0.00032959,2]
[399990643,1766983843059,-250.0,0.00032986,2]
[399990645,1766983843069,-150.0,0.00032986,2]
[399990648,1766983843078,-510.3897413,0.00032986,2]
[399990651,1766983843089,-500.0,0.00032986,2]
[399990653,1766983843099,-150.0,0.00033014,2]
[399990655,1766983843109,-500.0,0.00033014,2]
[399990657,1766983843118,-150.0,0.00033041,2]
[399990659,1766983843129,-500.0,0.00033041,2]
[399990661,1766983843138,-150.0,0.00033069,2]
[399990663,1766983843148,-500.0,0.00033069,2]
[399990665,1766983843157,-250.0,0.00033096,2]
[399990667,1766983843167,-500.0,0.00033096,2]
[399990669,1766983843176,-500.0,0.00033123,2]
[399990671,1766983843186,-500.0,0.00033151,2]
[399990673,1766983843197,-482.75,0.00033165,2]
[399990674,1766983843206,-500.0,0.00033178,2]
[399990676,1766983843216,-183.9,0.00033569,3]
[399990678,1766983843225,-277.9156099,0.00033586,2]
[399990681,1766983843237,-1611.0,0.00034303,2]
[399990683,1766983843249,-564.0,0.00034303,2]
[399990685,1766983843259,-6539.0,0.00034303,2]
[399990687,1766983843269,-600.0,0.00035,120]
[399990689,1766983843278,-1008.64106522,0.000356,2]
[399990691,1766983843288,-999.0,0.00035616,120]
[399990693,1766983843298,-3646.54492498,0.00035637,2]
[399990695,1766983843308,-1718.3075839,0.00035637,2]
[399990696,1766983843319,-183.9,0.00035914,4]
[399990699,1766983843328,-999.0,0.00036712,120]
[399990701,1766983843339,-1611.0,0.00037303,2]
[399990703,1766983843348,-564.0,0.00037303,2]
[399990704,1766983843357,-6539.0,0.00037303,2]
[399990706,1766983843367,-150.0,0.00037332,7]
[399990708,1766983843375,-999.0,0.00037808,120]
[399990710,1766983843385,-189.59,0.000379,14]
[399990712,1766983843394,-277.9156099,0.00038119,2]
[399990714,1766983843403,-183.9,0.00038259,5]
[399990716,1766983843413,-692.7,0.00038356,44]
[399990718,1766983843422,-372.36271561,0.00038476,2]
[399990720,1766983843431,-304.3664977,0.00038476,2]
[399990722,1766983843441,-368.11189296,0.00038476,2]
[399990724,1766983843450,-303.58705004,0.00038476,2]
[399990726,1766983843459,-595.39568782,0.00038476,2]
[399990728,1766983843468,-300.0,0.00038476,2]
[399990730,1766983843477,-452.08468471,0.00038476,2]
[399990732,1766983843486,-303.20169357,0.00038476,2]
[399990734,1766983843496,-577.5673783,0.00038476,2]
[399990736,1766983843506,-304.3664977,0.00038476,2]
[399990738,1766983843516,-368.11189296,0.00038476,2]
[399990740,1766983843527,-303.58705004,0.00038476,2]
[399990742,1766983843536,-595.39568782,0.00038476,2]
[399990744,1766983843545,-300.0,0.00038476,2]
[399990747,1766983843563,-303.20169357,0.00038476,2]
[399990749,1766983843574,-577.5673783,0.00038476,2]
[399990751,1766983843584,-3646.54492498,0.00038519,2]
[399990753,1766983843593,-1718.3075839,0.00038519,2]
[399990755,1766983843603,-2533.0,0.00038839,5]
[399990757,1766983843613,-999.0,0.00038904,120]
[399990759,1766983843624,-912.762,0.0003912,53]
[399990761,1766983843633,-861.11,0.00039598,5]
[399990763,1766983843644,-482.75,0.00039654,2]
[399990765,1766983843654,-999.0,0.0004,120]
[399990767,1766983843664,-564.0,0.00040303,2]
[399990770,1766983843675,-6539.0,0.00040303,2]
[399990772,1766983843684,-183.9,0.00040605,7]
[399990774,1766983843694,-196.650515,0.0004067,120]
[399990775,1766983843704,-1326.93,0.00040822,2]
[399990778,1766983843715,-262.200686,0.00040878,120]
[399990779,1766983843725,-1351.0,0.00041041,7]
[399990781,1766983843736,-349.600915,0.00041085,120]
[399990784,1766983843751,-578.28,0.00041095,120]
[399990786,1766983843761,-578.28,0.00041095,120]
[399990788,1766983843771,-578.28,0.00041095,120]
[399990790,1766983843780,-578.28,0.00041095,120]
[399990791,1766983843789,-578.28,0.00041095,120]
[399990793,1766983843798,-578.28,0.00041095,120]
[399990795,1766983843808,-578.28,0.00041095,120]
[399990796,1766983843818,-578.28,0.00041095,120]
[399990798,1766983843829,-578.28,0.00041095,120]
[399990800,1766983843839,-578.28,0.00041095,120]
[399990802,1766983843848,-578.28,0.00041095,120]
[399990804,1766983843857,-999.0,0.00041095,120]
[399990806,1766983843867,-333.73542011,0.00041096,2]
[399990809,1766983843878,-178.66,0.00041096,2]
[399990810,1766983843887,-341.68,0.00041096,2]
[399990812,1766983843897,-150.0,0.00041096,2]
[399990814,1766983843907,-150.0,0.00041096,2]
[399990817,1766983843917,-150.0,0.00041096,2]
[399990818,1766983843929,-170.94,0.00041096,2]
[399990821,1766983843938,-150.0,0.00041096,2]
[399990823,1766983843951,-178.66,0.00041096,2]
[399990825,1766983843962,-150.0,0.00041096,2]
[399990827,1766983843971,-170.94,0.00041096,2]
[399990829,1766983843981,-150.0,0.00041096,2]
[399990831,1766983843991,-178.66,0.00041096,2]
[399990832,1766983844001,-150.0,0.00041096,2]
[399990834,1766983844010,-150.0,0.00041096,2]
[399990836,1766983844022,-150.0,0.00041096,2]
[399990838,1766983844031,-178.66,0.00041096,2]
[399990840,1766983844041,-170.94,0.00041096,2]
[399990842,1766983844050,-150.0,0.00041096,2]
[399990844,1766983844061,-150.0,0.00041096,2]
[399990846,1766983844071,-178.66,0.00041096,2]
[399990848,1766983844080,-170.94,0.00041096,2]
[399990850,1766983844090,-150.0,0.00041096,2]
[399990852,1766983844099,-247.19,0.00041096,2]
[399990854,1766983844108,-178.66,0.00041096,2]
[399990856,1766983844117,-300.0,0.00041096,2]
[399990859,1766983844127,-170.46,0.00041096,2]
[399990862,1766983844136,-178.66,0.00041096,2]
[399990865,1766983844145,-356.51,0.00041096,2]
[399990868,1766983844158,-466.134554,0.00041293,120]
[399990870,1766983844168,-600.0,0.00041314,60]
[399990872,1766983844177,-500.0,0.00041314,60]
[399990874,1766983844187,-600.0,0.00041314,60]
[399990876,1766983844196,-480.0,0.0004137,30]
[399990878,1766983844206,-229.21481104,0.00041399,17]
[399990880,1766983844215,-150.001,0.000414,2]
[399990882,1766983844225,-3646.54492498,0.000414,15]
[399990884,1766983844234,-1718.3075839,0.000414,15]
[399990886,1766983844243,-229.53368888,0.000414,2]
[399990888,1766983844253,-175.7179571,0.000414,2]
[399990890,1766983844262,-3919.70773668,0.00041477,7]
[399990892,1766983844273,-356.0,0.00041479,120]
[399990894,1766983844283,-578.28,0.00041499,120]
[399990896,1766983844293,-578.28,0.00041499,120]
[399990898,1766983844302,-578.28,0.00041499,120]
[399990900,1766983844312,-578.28,0.00041499,120]
[399990902,1766983844322,-578.28,0.00041499,120]
[399990904,1766983844331,-578.28,0.00041499,120]
[399990906,1766983844341,-578.28,0.00041499,120]
[399990908,1766983844353,-578.28,0.00041499,120]
[399990910,1766983844363,-578.28,0.00041499,120]
[399990912,1766983844372,-578.28,0.00041499,120]
[399990914,1766983844382,-578.28,0.00041499,120]
[399990916,1766983844392,-578.28,0.00041499,120]
[399990918,1766983844402,-578.43,0.00041499,120]
[399990920,1766983844412,-162.92438753,0.00041499,20]
[399990923,1766983844421,-151.0,0.00041499,120]
[399990925,1766983844431,-567.0,0.00041499,120]
[399990927,1766983844441,-151.0,0.00041499,120]
[399990929,1766983844451,-153.07907455,0.00041499,120]
[399990931,1766983844460,-250.0,0.00041499,120]
[399990933,1766983844470,-500.0,0.00041499,120]
[399990934,1766983844479,-6915.64541533,0.00041499,120]
[399990937,1766983844489,-156.587,0.00041499,120]
[399990939,1766983844500,-567.0,0.00041499,120]
[399990941,1766983844509,-170.43986016,0.00041499,120]
[399990943,1766983844519,-151.0,0.00041499,120]
[399990945,1766983844528,-500.0,0.00041499,120]
[399990947,1766983844539,-162.380719,0.00041499,120]
[399990949,1766983844551,-567.0,0.00041499,120]
[399990951,1766983844561,-156.30350152,0.00041499,120]
[399990953,1766983844571,-500.0,0.00041499,120]
[399990955,1766983844580,-752.92150273,0.00041499,120]
[399990957,1766983844590,-168.3888056,0.00041499,120]
[399990959,1766983844599,-567.0,0.00041499,120]
[399990961,1766983844609,-500.0,0.00041499,120]
[399990963,1766983844618,-174.61919141,0.00041499,120]
[399990965,1766983844628,-500.0,0.00041499,120]
[399990967,1766983844637,-567.0,0.00041499,120]
[399990969,1766983844646,-500.0,0.00041499,120]
[399990971,1766983844657,-181.08010149,0.00041499,120]
[399990973,1766983844666,-151.0,0.00041499,120]
[399990975,1766983844676,-567.0,0.00041499,120]
[399990977,1766983844686,-500.0,0.00041499,120]
[399990979,1766983844695,-500.0,0.00041499,120]
[399990981,1766983844704,-156.587,0.00041499,120]
[399990983,1766983844714,-151.0,0.00041499,120]
[399990985,1766983844723,-567.0,0.00041499,120]
[399990987,1766983844733,-187.78006526,0.00041499,120]
[399990989,1766983844744,-493.3952879,0.00041499,120]
[399990991,1766983844754,-162.380719,0.00041499,120]
[399990993,1766983844765,-500.0,0.00041499,120]
[399990995,1766983844774,-151.0,0.00041499,120]
[399990997,1766983844784,-168.3888056,0.00041499,120]
[399990999,1766983844793,-500.0,0.00041499,120]
[399991001,1766983844803,-250.0,0.00041499,120]
[399991003,1766983844812,-174.61919141,0.00041499,120]
[399991005,1766983844822,-500.0,0.00041499,120]
[399991007,1766983844831,-250.0,0.00041499,120]
[399991009,1766983844841,-181.08010149,0.00041499,120]
[399991011,1766983844850,-500.0,0.00041499,120]